[Event "GER-ch Youth U14 2019"]
[Site "Willingen"]
[Date "2019.06.15"]
[Round "9.17"]
[White "Wellssow, Keoki"]
[Black "May, Ben-Iven"]
[Result "0-1"]
[ECO "A15"]
[WhiteElo "1509"]
[BlackElo "1692"]
[Annotator "NA"]
[PlyCount "82"]
[EventDate "2019.06.07"]
[EventType "swiss"]
[EventRounds "9"]
[EventCountry "GER"]
[SourceTitle "playchess.com"]
[Source "ChessBase"]
[SourceQuality "1"]
[TimeControl "40/5400+30:1800+30"]

1. c4 {[%emt 0:00:00]} Nf6 {[%emt 0:00:00]} 2. g3 {[%emt 0:00:02]} g6 {[%emt 0:00:00]} 3. Bg2 {[%emt 0:00:13]} Bg7 {[%emt 0:00:00]} 4. Nc3 {[%emt 0:00:45]} O-O {[%emt 0:00:00]} 5. e3 {[%emt 0:00:59]} d6 {[%emt 0:00:02]} 6. Nge2 {[%emt 0:00:47]} e5 {[%emt 0:00:13]} 7. O-O {[%emt 0:01:43]} Nbd7 {[%emt 0:00:37]} 8. d3 {[%emt 0:01:38]} Ne8 {[%emt 0:00:46]} 9. f4 {[%emt 0:02:12]} f5 {[%emt 0:00:44]} 10. Bd2 {[%emt 0:02:40]} c6 {[%emt 0:05:47]} 11. Qc2 {[%emt 0:04:24]} Qc7 {[%emt 0:03:08]} 12. Rfc1 {[%emt 0:07:25]} Nef6 {[%emt 0:06:20]} 13. Rab1 {[%emt 0:03:28]} Re8 {[%emt 0:05:45]} 14. h3 {[%emt 0:19:12]} Kh8 {[%emt 0:11:43]} 15. b4 {[%emt 0:02:55]} exf4 {[%emt 0:01:47]} 16. exf4 {[%emt 0:05:28]} a6 {[%emt 0:04:41]} 17. Kh2 {[%emt 0:05:48]} h6 {[%emt 0:09:06]} 18. Re1 {[%emt 0:05:48]} Nf8 {[%emt 0:02:32]} 19. Ng1 {[%emt 0:06:16]} Bd7 {[%emt 0:00:20]} 20. Nf3 {[%emt 0:02:12]} Re6 {[%emt 0:06:48]} 21. Rxe6 {[%emt 0:04:52]} Nxe6 {[%emt 0:00:27]} 22. Be3 {[%emt 0:01:54]} b5 {[%emt 0:03:14]} 23. cxb5 {[%emt 0:02:02]} axb5 {[%emt 0:00:12]} 24. Rc1 {[%emt 0:08:14]} Rc8 {[%emt 0:08:56]} 25. Qb3 {[%emt 0:06:31]} Qb8 {[%emt 0:03:43]} 26. a3 {[%emt 0:02:37]} Kh7 {[%emt 0:02:55]} 27. Kg1 {[%emt 0:01:36]} Nh5 {[%emt 0:02:59]} 28. Kh2 {[%emt 0:01:06]} d5 {[%emt 0:00:37]} 29. Bf2 {[%emt 0:01:10]} g5 {[%emt 0:01:14]} 30. fxg5 {[%emt 0:00:25]} hxg5 {[%emt 0:00:04]} 31. Re1 {[%emt 0:00:33]} Bf6 {[%emt 0:04:53]} 32. Ne2 {[%emt 0:00:30]} g4 {[%emt 0:00:30]} 33. Nfd4 {[%emt 0:00:31]} Nxd4 {[%emt 0:00:47]} 34. Nxd4 {[%emt 0:00:17]} Bxd4 {[%emt 0:00:05]} 35. Re7+ {[%emt 0:00:11]} Kg6 {[%emt 0:01:37]} 36. Bxd4 {[%emt 0:00:41]} Qxg3+ {[%emt 0:00:07]} 37. Kg1 {[%emt 0:00:23]} gxh3 {[%emt 0:00:17]} 38. Qc2 {[%emt 0:00:36]} Re8 {[%emt 0:02:33]} 39. Rxe8 {[%emt 0:00:49]} Bxe8 {[%emt 0:00:11]} 40. Qe2 {[%emt 0:00:34]} Qxg2+ {[%emt 0:00:15]} 41. Qxg2+ {[%emt 0:30:08]} hxg2 {[%emt 0:30:05] normal} 0-1

[Event "GER-ch Youth U14 2019"]
[Site "Willingen"]
[Date "2019.06.15"]
[Round "9.18"]
[White "Roeste, Hugo"]
[Black "Bornholdt, Joa Max"]
[Result "1/2-1/2"]
[ECO "E10"]
[WhiteElo "1466"]
[BlackElo "1754"]
[Annotator "NA"]
[PlyCount "54"]
[EventDate "2019.06.07"]
[EventType "swiss"]
[EventRounds "9"]
[EventCountry "GER"]
[SourceTitle "playchess.com"]
[Source "ChessBase"]
[SourceQuality "1"]
[TimeControl "40/5400+30:1800+30"]

1. d4 {[%emt 0:00:00]} Nf6 {[%emt 0:00:00]} 2. c4 {[%emt 0:00:00]} e6 {[%emt 0:00:00]} 3. Nf3 {[%emt 0:00:12]} c5 {[%emt 0:00:00]} 4. Nc3 {[%emt 0:01:24]} cxd4 {[%emt 0:00:07]} 5. Nxd4 {[%emt 0:01:08]} Bb4 {[%emt 0:00:06]} 6. Qc2 {[%emt 0:01:18]} Nc6 {[%emt 0:00:28]} 7. Nxc6 {[%emt 0:01:56]} bxc6 {[%emt 0:00:10]} 8. e3 {[%emt 0:00:59]} O-O {[%emt 0:00:39]} 9. Bd3 {[%emt 0:01:28]} d5 {[%emt 0:00:26]} 10. O-O {[%emt 0:01:09]} Qe7 {[%emt 0:02:19]} 11. a3 {[%emt 0:02:26]} Bd6 {[%emt 0:03:48]} 12. b4 {[%emt 0:02:44]} Bb8 {[%emt 0:22:46]} 13. cxd5 {[%emt 0:07:09]} cxd5 {[%emt 0:01:48]} 14. Bb2 {[%emt 0:01:58]} Bb7 {[%emt 0:04:51]} 15. Be2 {[%emt 0:03:51]} Qc7 {[%emt 0:06:24]} 16. g3 {[%emt 0:09:29]} Nd7 {[%emt 0:14:12]} 17. Rac1 {[%emt 0:03:56]} Qd6 {[%emt 0:07:59]} 18. Nb5 {[%emt 0:04:35]} Qe7 {[%emt 0:01:27]} 19. Qd2 {[%emt 0:02:53]} Ne5 {[%emt 0:02:37]} 20. Rc5 {[%emt 0:05:03]} a6 {[%emt 0:01:31]} 21. Nd4 {[%emt 0:01:14]} Bd6 {[%emt 0:01:29]} 22. Rc2 {[%emt 0:01:05]} a5 {[%emt 0:06:48]} 23. Nb5 {[%emt 0:03:54]} axb4 {[%emt 0:00:10]} 24. Nxd6 {[%emt 0:00:26]} Qxd6 {[%emt 0:00:01]} 25. Qxb4 {[%emt 0:00:45]} Qxb4 {[%emt 0:00:48]} 26. axb4 {[%emt 0:00:19]} Ra2 {[%emt 0:02:24]} 27. Rfc1 {[%emt 0:00:39]} Nc4 {[%emt 0:01:24] normal} 1/2-1/2

[Event "GER-ch Youth U14 2019"]
[Site "Willingen"]
[Date "2019.06.15"]
[Round "9.19"]
[White "Divry, Alexandre"]
[Black "Elsner, Robert"]
[Result "0-1"]
[ECO "E91"]
[WhiteElo "1654"]
[BlackElo "1745"]
[Annotator "NA"]
[PlyCount "76"]
[EventDate "2019.06.07"]
[EventType "swiss"]
[EventRounds "9"]
[EventCountry "GER"]
[SourceTitle "playchess.com"]
[Source "ChessBase"]
[SourceQuality "1"]
[TimeControl "40/5400+30:1800+30"]

1. d4 {[%emt 0:00:00]} Nf6 {[%emt 0:00:00]} 2. c4 {[%emt 0:00:00]} g6 {[%emt 0:00:00]} 3. Nc3 {[%emt 0:00:00]} Bg7 {[%emt 0:00:00]} 4. e4 {[%emt 0:00:00]} d6 {[%emt 0:00:00]} 5. Be2 {[%emt 0:00:01]} O-O {[%emt 0:00:00]} 6. Nf3 {[%emt 0:00:04]} Nbd7 {[%emt 0:00:00]} 7. O-O {[%emt 0:00:13]} e5 {[%emt 0:00:00]} 8. Be3 {[%emt 0:00:08]} Ng4 {[%emt 0:01:20]} 9. Bg5 {[%emt 0:00:02]} f6 {[%emt 0:00:12]} 10. Bd2 {[%emt 0:00:10]} Nh6 {[%emt 0:00:05]} 11. b4 {[%emt 0:00:30]} f5 {[%emt 0:03:18]} 12. d5 {[%emt 0:00:56]} f4 {[%emt 0:00:07]} 13. h3 {[%emt 0:02:11]} g5 {[%emt 0:06:15]} 14. Nh2 {[%emt 0:00:30]} Nf6 {[%emt 0:00:30]} 15. Ng4 {[%emt 0:02:02]} Nhxg4 {[%emt 0:02:41]} 16. Bxg4 {[%emt 0:00:04]} Nxg4 {[%emt 0:00:30]} 17. hxg4 {[%emt 0:00:02]} h5 {[%emt 0:00:13]} 18. gxh5 {[%emt 0:00:35]} g4 {[%emt 0:00:03]} 19. f3 {[%emt 0:08:05]} g3 {[%emt 0:03:49]} 20. Re1 {[%emt 0:04:08]} Qh4 {[%emt 0:00:05]} 21. Kf1 {[%emt 0:01:46]} Qh2 {[%emt 0:02:06]} 22. Ke2 {[%emt 0:04:54]} Qxg2+ {[%emt 0:00:24]} 23. Kd3 {[%emt 0:00:02]} Bh6 {[%emt 0:02:00]} 24. Qe2 {[%emt 0:03:58]} Qxe2+ 25. Nxe2 {[%emt 0:05:45]} Kg7 {[%emt 0:04:05]} 26. Rg1 {[%emt 0:02:50]} Bd7 {[%emt 0:00:59]} 27. Nxg3 {[%emt 0:06:10]} fxg3 {[%emt 0:00:04]} 28. Rxg3+ {[%emt 0:00:03]} Kh7 {[%emt 0:00:04]} 29. Bxh6 {[%emt 0:00:26]} Kxh6 {[%emt 0:00:04]} 30. Rag1 {[%emt 0:05:08]} Rf7 {[%emt 0:00:17]} 31. Rg6+ {[%emt 0:01:44]} Kh7 {[%emt 0:00:23]} 32. h6 {[%emt 0:00:40]} Raf8 {[%emt 0:01:39]} 33. Rg7+ {[%emt 0:01:43]} Kxh6 {[%emt 0:03:19]} 34. R7g6+ {[%emt 0:02:37]} Kh7 {[%emt 0:03:27]} 35. R6g2 {[%emt 0:04:35]} Rxf3+ {[%emt 0:00:08]} 36. Ke2 {[%emt 0:00:12]} Bh3 {[%emt 0:02:09]} 37. Rh1 {[%emt 0:04:37]} Ra3 {[%emt 0:00:54]} 38. Ke1 {[%emt 0:00:12]} Rff3 {[%emt 0:00:26] normal} 0-1

[Event "GER-ch Youth U14 2019"]
[Site "Willingen"]
[Date "2019.06.15"]
[Round "9.20"]
[White "Kolmykov, Egor"]
[Black "Rockmann, Enno"]
[Result "1/2-1/2"]
[ECO "C02"]
[WhiteElo "1642"]
[BlackElo "1527"]
[Annotator "NA"]
[PlyCount "34"]
[EventDate "2019.06.07"]
[EventType "swiss"]
[EventRounds "9"]
[EventCountry "GER"]
[SourceTitle "playchess.com"]
[Source "ChessBase"]
[SourceQuality "1"]
[TimeControl "40/5400+30:1800+30"]

1. e4 {[%emt 0:00:00]} e6 {[%emt 0:00:00]} 2. d4 {[%emt 0:00:00]} d5 {[%emt 0:00:00]} 3. e5 {[%emt 0:00:00]} c5 {[%emt 0:00:00]} 4. c3 {[%emt 0:00:05]} Nc6 {[%emt 0:00:00]} 5. Nf3 {[%emt 0:00:09]} f6 {[%emt 0:01:04]} 6. exf6 {[%emt 0:02:01]} Nxf6 {[%emt 0:00:07]} 7. Bd3 {[%emt 0:00:25]} c4 {[%emt 0:00:41]} 8. Bc2 {[%emt 0:00:10]} Bd6 {[%emt 0:00:06]} 9. O-O {[%emt 0:01:33]} O-O {[%emt 0:00:11]} 10. Re1 {[%emt 0:02:03]} Qc7 {[%emt 0:00:36]} 11. h3 {[%emt 0:01:49]} e5 {[%emt 0:00:06]} 12. dxe5 {[%emt 0:08:49]} Nxe5 {[%emt 0:00:09]} 13. Nbd2 {[%emt 0:01:36]} Bd7 {[%emt 0:13:19]} 14. Nxe5 {[%emt 0:02:25]} Bxe5 {[%emt 0:01:01]} 15. Nf3 {[%emt 0:00:11]} Bd6 {[%emt 0:09:32]} 16. Bg5 {[%emt 0:01:20]} Bc6 {[%emt 0:07:29]} 17. Nd4 {[%emt 0:01:02]} Bc5 {[%emt 0:12:16] normal} 1/2-1/2

[Event "GER-ch Youth U14 2019"]
[Site "Willingen"]
[Date "2019.06.15"]
[Round "9.21"]
[White "Wildermuth, Nikolas Karl"]
[Black "Seng, Alexander"]
[Result "1/2-1/2"]
[ECO "B21"]
[WhiteElo "1748"]
[BlackElo "1505"]
[Annotator "NA"]
[PlyCount "35"]
[EventDate "2019.06.07"]
[EventType "swiss"]
[EventRounds "9"]
[EventCountry "GER"]
[SourceTitle "playchess.com"]
[Source "ChessBase"]
[SourceQuality "1"]
[TimeControl "40/5400+30:1800+30"]

1. e4 {[%emt 0:00:00]} c5 {[%emt 0:00:00]} 2. d4 {[%emt 0:00:00]} cxd4 {[%emt 0:00:00]} 3. c3 {[%emt 0:00:00]} Nc6 {[%emt 0:02:47]} 4. cxd4 {[%emt 0:00:48]} e6 {[%emt 0:01:45]} 5. Nf3 {[%emt 0:02:19]} Nf6 {[%emt 0:00:19]} 6. Nc3 {[%emt 0:01:39]} a6 7. a4 {[%emt 0:06:50]} d5 {[%emt 0:07:09]} 8. e5 {[%emt 0:01:33]} Ne4 {[%emt 0:02:22]} 9. Bd3 {[%emt 0:02:47]} Bb4 {[%emt 0:00:58]} 10. Bd2 {[%emt 0:01:29]} Nxd2 {[%emt 0:01:29]} 11. Qxd2 {[%emt 0:00:18]} Qa5 {[%emt 0:01:45]} 12. O-O {[%emt 0:05:47]} Ne7 {[%emt 0:01:48]} 13. Rfc1 {[%emt 0:02:45]} Bd7 {[%emt 0:00:30]} 14. Qd1 {[%emt 0:05:01]} O-O {[%emt 0:01:07]} 15. h4 {[%emt 0:04:52]} Rac8 {[%emt 0:04:19]} 16. Qb3 {[%emt 0:03:40]} Rc7 {[%emt 0:04:00]} 17. Na2 {[%emt 0:03:34]} Rxc1+ 18. Rxc1 {[%emt 0:00:23] normal} 1/2-1/2

[Event "GER-ch Youth U14 2019"]
[Site "Willingen"]
[Date "2019.06.15"]
[Round "9.22"]
[White "Straub, Benno"]
[Black "Gutewort, Paul Emil"]
[Result "1-0"]
[ECO "B22"]
[WhiteElo "1490"]
[BlackElo "1708"]
[Annotator "NA"]
[PlyCount "59"]
[EventDate "2019.06.07"]
[EventType "swiss"]
[EventRounds "9"]
[EventCountry "GER"]
[SourceTitle "playchess.com"]
[Source "ChessBase"]
[SourceQuality "1"]
[TimeControl "40/5400+30:1800+30"]

1. e4 {[%emt 0:00:00]} c5 {[%emt 0:00:00]} 2. c3 {[%emt 0:00:00]} g6 {[%emt 0:00:00]} 3. d4 {[%emt 0:00:08]} cxd4 {[%emt 0:00:00]} 4. cxd4 {[%emt 0:00:04]} d5 {[%emt 0:00:00]} 5. e5 {[%emt 0:01:24]} Nc6 {[%emt 0:00:00]} 6. Nf3 {[%emt 0:00:04]} Bg7 {[%emt 0:00:05]} 7. Nc3 {[%emt 0:00:52]} Nh6 {[%emt 0:00:21]} 8. Be2 {[%emt 0:02:12]} Bg4 {[%emt 0:00:20]} 9. O-O {[%emt 0:00:50]} Nf5 {[%emt 0:00:32]} 10. Ne1 {[%emt 0:05:04]} Bxe2 {[%emt 0:00:22]} 11. Nxe2 {[%emt 0:00:07]} O-O {[%emt 0:00:14]} 12. Nf3 {[%emt 0:00:58]} e6 {[%emt 0:01:08]} 13. b3 {[%emt 0:01:47]} Qb6 {[%emt 0:01:13]} 14. Ba3 {[%emt 0:01:59]} Rfd8 {[%emt 0:01:11]} 15. Bc5 {[%emt 0:01:09]} Qa6 {[%emt 0:00:46]} 16. a4 {[%emt 0:02:36]} Rac8 {[%emt 0:01:19]} 17. b4 {[%emt 0:02:39]} b5 {[%emt 0:01:58]} 18. Nc3 {[%emt 0:05:03]} bxa4 {[%emt 0:03:38]} 19. b5 {[%emt 0:00:44]} Qa5 {[%emt 0:00:09]} 20. Qxa4 {[%emt 0:04:33]} Qxa4 {[%emt 0:00:10]} 21. Nxa4 {[%emt 0:00:47]} Na5 {[%emt 0:05:45]} 22. Bxa7 {[%emt 0:03:40]} Ra8 {[%emt 0:00:23]} 23. Bb6 {[%emt 0:00:39]} Rdb8 {[%emt 0:00:31]} 24. Rfb1 {[%emt 0:01:30]} Nc4 {[%emt 0:00:35]} 25. Bc7 {[%emt 0:02:07]} Rb7 {[%emt 0:02:16]} 26. b6 {[%emt 0:00:31]} Bf8 {[%emt 0:01:27]} 27. Nc5 {[%emt 0:00:48]} Rxa1 {[%emt 0:00:51]} 28. Rxa1 {[%emt 0:00:05]} Bxc5 {[%emt 0:00:13]} 29. dxc5 {[%emt 0:00:10]} Ne7 {[%emt 0:00:41]} 30. Ra7 {[%emt 0:00:31] normal} 1-0